Cogmind - Beta 9.4 *** ADVENTURER MODE // 2020.06.15 @ 20:29:43 Player: Scyralis Result: Self-destructed Performance ------------- Evolutions (1) 500 Regions Visited (2) 400 Robots Destroyed (3) 15 Value Destroyed (50) 50 Prototype IDs (4) 80 Alien Tech Used (0) 0 Bonus (0) 0 TOTAL SCORE: 1045 Bonus ------- None Cogmind --------- Core Integrity 246/400 Matter 294/300 Energy 61/100 System Corruption 2% Temperature Cool (0) Movement Core (100) Ox1 Location -9/Materials Parts ------- > --- POWER (1) -------- (None) > --- PROPULSION (2) --- (None) > --- UTILITY (4) ------ Small Storage Unit Visual Processing Unit Terrain Scanner > --- WEAPON (2) ------- (None) > --- INVENTORY (6) ---- (None) Peak State ------------ > --- POWER ------------ Light Ion Engine > --- PROPULSION ------- Hover Unit Hover Unit > --- UTILITY ---------- Small Storage Unit Visual Processing Unit Terrain Scanner Medium Armor Plating > --- WEAPON ----------- Mining Laser > --- INVENTORY -------- Welding Torch [Rating: 10] Favorites ----------- Power Ion Engine Engine Ion Engine Propulsion Aluminum Leg Leg Aluminum Leg Hover Unit Hover Unit Flight Unit VTOL Module Utility Small Storage Unit Device Terrain Scanner Storage Small Storage Unit Processor Visual Processing Unit Protection Medium Armor Plating Weapon Grenade Launcher Energy Gun Backup Laser I Energy Cannon Beam Cannon Ballistic Gun Light Assault Rifle Launcher Grenade Launcher Special Weapon Mining Laser Build | -11 -10 -9 ------- Run | Scr Mat Mat Slots Evolved 2 | . . 2 Power . | . . . Propulsion . | . . . Utility 2 | . . 2 Weapon . | . . . Parts Attached 25 | 4 18 3 Power 2 | 1 1 . Engine 2 | 1 1 . Core . | . . . Reactor . | . . . Propulsion 10 | 2 8 . Treads . | . . . Leg 2 | 2 . . Wheel . | . . . Hover 2 | . 2 . Flight 6 | . 6 . Utility 4 | 1 1 2 Device 1 | . 1 . Storage 1 | 1 . . Processor 1 | . . 1 Hackware . | . . . Protection 1 | . . 1 Artifact . | . . . Weapon 9 | . 8 1 Energy Gun . | . . . Energy Cannon 1 | . 1 . Ballistic Gun 2 | . 2 . Ballistic Cannon . | . . . Launcher 2 | . 2 . Special Weapon 4 | . 3 1 Impact Weapon . | . . . Slashing Weapon . | . . . Piercing Weapon . | . . . Special Melee Weapon . | . . . Unidentified Prototypes . | . . . Parts Lost 6 | . . 6 Power 1 | . . 1 Propulsion 2 | . . 2 Utility 1 | . . 1 Weapon 2 | . . 2 Highest Loss Streak 5 | . . 5 Average Slot Usage (%) 77 | . 83 61 Engine 12 | . 14 8 Leg 8 | . 11 . Hover 4 | . 3 8 Flight 9 | . 12 . Device 13 | . 13 11 Storage 13 | . 14 11 Processor 2 | . . 10 Protection 1 | . . 4 Launcher 6 | . 8 . Special Weapon 4 | . 3 6 Naked Turns . | . . . Heaviest Build 16 | 9 16 16 Greatest Support 20 | 20 20 12 Greatest Overweight (x) 5 | . 1 5 Average Overweight (x) . | . . 1 Largest Inventory Capacity 6 | 6 6 6 Average Capacity 5 | 5 6 6 Most Carried 5 | 2 5 2 Average Carried 1 | . 1 . Final Capacity 6 | 6 6 6 Final Carried 1 | . 1 . Class Distribution -------------------- 100% | Mutant Dominant Class ---------------- Mutant | -10/Materials Mutant | -9/Materials Resources | -11 -10 -9 ----------- Run | Scr Mat Mat Matter Collected 434 | 190 148 96 Remotely . | . . . Salvage Created 51 | . 51 . Parts 6 | . 6 . Haulers Intercepted . | . . . Recyclers Shooed . | . . . Parts Field Recycled . | . . . Retrieved Matter . | . . . Parts Self-Destructed . | . . . Prevented . | . . . Kills | -11 -10 -9 ------- Run | Scr Mat Mat Combat Hostiles Destroyed 3 | . 3 . Guns 3 | . 3 . Classes Destroyed 1 | . 1 . Swarmer 3 | . 3 . Best Kill Streak 3 | . 3 . Combat Bots Only 3 | . 3 . Max Kills in Single Turn 2 | . 2 . Gunslinging 1 | . 1 . Exploded . | . . . Melee . | . . . Uniques/NPCs Destroyed . | . . . Combat | -11 -10 -9 -------- Run | Scr Mat Mat Damage Taken 703 | 1 242 460 Core 266 | . 112 154 Absorbed by Shields . | . . . Core Remaining (%) 77 | 100 55 . Volleys Fired 30 | . 23 7 Largest 2 | . 2 1 Hottest 100 | . 100 100 Shots Fired 35 | . 28 7 Gun 6 | . 6 . Cannon 8 | . 8 . Launcher 4 | . 4 . Special 17 | . 10 7 Kinetic . | . . . Thermal 31 | . 24 7 Explosive 4 | . 4 . Electromagnetic . | . . . Robot Hit Streak 5 | . 5 1 Robot Miss Streak 2 | . 2 2 Penetration Max . | . . . Secondary Targets 2 | . 2 . Max Gunslinging Chain 1 | . 1 . Shots Hit Robots 7 | . 6 1 Core Hits 4 | 1 3 . Critical Hits . | . . . Critical Kills . | . . . Critical Parts Destroyed . | . . . Melee Attacks . | . . . Impact . | . . . Slashing . | . . . Piercing . | . . . Sneak Attacks . | . . . Combat Hostiles . | . . . Follow-up Attacks . | . . . Damage Inflicted 99 | 2 91 6 Guns 43 | . 43 . Cannons . | . . . Explosions . | . . . Melee . | . . . Ramming 4 | 2 . 2 Kinetic . | . . . Thermal 95 | . 91 4 Explosive . | . . . Electromagnetic . | . . . Impact . | . . . Slashing . | . . . Piercing . | . . . Highest Corruption 2 | . . 2 Average Corruption 2 | . . 2 Corruption Purged . | . . . Effects 2 | . . 2 Message Errors 1 | . . 1 Data Loss (minor) 1 | . . 1 Overload Shots . | . . . Overflow Damage . | . . . Projectiles . | . . . Explosions . | . . . Melee . | . . . Knockbacks . | . . . Impact . | . . . Kinetic . | . . . Secondary . | . . . Self-Inflicted Damage 2 | 1 . 1 Shots . | . . . Rammed 5 | 1 . 4 Targets Rammed 5 | 1 . 4 Kicked . | . . . Crushed . | . . . Highest Temperature 192 | . 192 45 Average Temperature 64 | . 72 22 Received Heat Transfer 429 | . 108 321 Siege Activations . | . . . Robots Corrupted . | . . . Combat Hostiles . | . . . Parts Fried . | . . . Impact Corruptions . | . . . Robots Melted . | . . . Combat Hostiles . | . . . Parts Melted 1 | . 1 . Heat Transferred 310 | . 285 25 Parts Sabotaged . | . . . Parts Stolen . | . . . Parts Stripped . | . . . Power Chain Reactions . | . . . Missiles Intercepted . | . . . Alert | -11 -10 -9 ------- Run | Scr Mat Mat Peak Influence 155 | . 155 35 Average Influence 24 | . 32 8 Maximum Alert Level . | . . . Low Security (%) 100 | 100 100 100 Level 1 . | . . . Level 2 . | . . . Level 3 . | . . . Level 4 . | . . . Level 5 . | . . . High Security . | . . . Max Security . | . . . Squads Dispatched 3 | . 3 . Investigation 3 | . 3 . Extermination . | . . . Reinforcement . | . . . Assault . | . . . Garrison . | . . . Intercept . | . . . Construction Impeded . | . . . Haulers Reinforced . | . . . Stealth | -11 -10 -9 --------- Run | Scr Mat Mat Distress Signals 1 | . . 1 Communications Jammed . | . . . Distress Signals . | . . . Times Spotted 18 | . 10 8 Peak Tracking Total 5 | . 3 5 Tactical Retreats 6 | . 2 4 Traps | -11 -10 -9 ------- Run | Scr Mat Mat Traps Triggered . | . . . Indirectly . | . . . Trap Hack Attempts . | . . . Triggered . | . . . Disarmed . | . . . Reprogrammed . | . . . Reused . | . . . Traps Extracted . | . . . Installed . | . . . Triggered . | . . . Machines | -11 -10 -9 ---------- Run | Scr Mat Mat Machines Disabled 2 | . 2 . Max in Single Turn 2 | . 2 . Machines Sabotaged . | . . . Garrisons Compromised . | . . . Overloaded Fab Kills . | . . . Fab Network Shutdowns . | . . . Hacking | -11 -10 -9 --------- Run | Scr Mat Mat Machines Accessed 8 | . 7 1 Terminals 6 | . 5 1 Fabricators . | . . . Repair Stations 1 | . 1 . Recycling Units 1 | . 1 . Scanalyzers . | . . . Garrison Access . | . . . Total Hacks 28 | . 25 3 Successful 22 | . 19 3 Failed 6 | . 6 . Catastrophic . | . . . Database Lockouts . | . . . Manual . | . . . Terminals 22 | . 19 3 Fabricators . | . . . Repair Stations 2 | . 2 . Recycling Units 4 | . 4 . Scanalyzers . | . . . Garrison Access . | . . . Terminal Hacks 18 | . 15 3 Record 4 | . 4 . Prototype ID Bank 2 | . 2 . Machine Index 1 | . 1 . Recycling Unit Index 1 | . 1 . Alert Level 1 | . . 1 Locate Traps 1 | . 1 . Maintenance Status 1 | . 1 . Transport Status 1 | . 1 . Reinforcement Status 1 | . . 1 Recall Investigation 1 | . 1 . Recall Reinforcements 1 | . . 1 Registered Prototypes 1 | . 1 . Zone Layout 2 | . 2 . Fabricator Hacks . | . . . Repair Station Hacks 1 | . 1 . Refit 1 | . 1 . Recycling Unit Hacks 3 | . 3 . Recycle Component 1 | . 1 . Process 1 | . 1 . Retrieve Components 1 | . 1 . Scanalyzer . | . . . Garrison Access Hacks . | . . . Unauthorized Hacks . | . . . Terminals . | . . . Fabricators . | . . . Repair Stations . | . . . Recycling Units . | . . . Scanalyzers . | . . . Garrison Access . | . . . Data Cores Recovered . | . . . Used . | . . . Hacking Detections 6 | . 5 1 Full Trace Events 6 | . 5 1 Feedback Events . | . . . Feedback Blocked . | . . . Robot Schematics Acquired . | . . . Robots Built . | . . . Matter . | . . . Time . | . . . Total Robot Build Rating . | . . . Part Schematics Acquired . | . . . Parts Built . | . . . Matter . | . . . Time . | . . . Total Part Build Rating . | . . . Parts Repaired . | . . . Time . | . . . Parts Recycled 1 | . 1 . Recycled Matter 230 | . 230 . Retrieved Matter . | . . . Retrieved Components . | . . . Parts Scanalyzed . | . . . Part Schematics Acquired . | . . . Parts Damaged . | . . . Bothacking | -11 -10 -9 ------------ Run | Scr Mat Mat Used RIF Installer . | . . . Robots Hacked . | . . . Non-combat . | . . . Combat . | . . . Robot Hacks Applied . | . . . Relay Couplers Released . | . . . Robots Rewired . | . . . Allies Hacked . | . . . Hacks Repelled . | . . . Allies | -11 -10 -9 -------- Run | Scr Mat Mat Total Allies . | . . . Largest Group . | . . . Highest-Rated Group . | . . . Highest-Rated Ally . | . . . Total Orders . | . . . Ally Attacks . | . . . Total Damage . | . . . Kills . | . . . Allies Corrupted . | . . . Allies Melted . | . . . Intel | -11 -10 -9 ------- Run | Scr Mat Mat Robot Analysis Total . | . . . Derelict Logs Recovered . | . . . Drone Launches . | . . . Drone Recoveries . | . . . Exploration | -11 -10 -9 ------------- Run | Scr Mat Mat Turns Passed 704 | 52 492 160 Spaces Moved 657 | 45 496 116 Core 64 | 15 . 49 Treads . | . . . Legs 151 | 30 121 . Wheels . | . . . Hover 138 | . 71 67 Flight 304 | . 304 . Fastest Speed 37 | 50 37 56 Average Speed 74 | 96 64 107 Slowest Speed 300 | 120 120 300 Overloaded Moves . | . . . Propulsion Burnouts . | . . . Robots Hopped 3 | . 3 . Cave-ins Triggered . | . . . Exploration Rate (%) 29 | 3 71 13 Regions Visited 2 Branch Regions . Pre-discovered Areas . | . . . Known Exits Taken . | . . . Unknown Exits Taken 2 | 1 1 . Scrap Searched . | . . . Spaces Dug 5 | . 2 3 Terrain Destroyed 33 | . 30 3 Melee . | . . . Projectile 6 | . 3 3 AOE 27 | . 27 . Actions | -11 -10 -9 --------- Run | Scr Mat Mat Total 808 | 53 623 132 Wait 55 | . 55 . Move 649 | 44 489 116 Hop 3 | . 3 . Pick Up 23 | 4 17 2 Fast Attach . | . . . Attach 18 | 4 11 3 Detach 3 | . 3 . Swap 7 | . 7 . Drop 15 | . 15 . Fire 30 | . 23 7 Melee . | . . . Ram 4 | . . 4 Kick 1 | 1 . . Crush . | . . . Escape Stasis . | . . . Rewire . | . . . Trap . | . . . Miscellaneous . | . . . Route ------- -11/Scrapyard -10/Materials (discovered 3 exits: *Mat / [*Min x2]) -9/Materials History --------- Turn | Location | Event 9 | -11/Scrapyard | Discovered new exit (range 15) 53 | -11/Scrapyard | Entered Materials 304 | -10/Materials | Build established: Mutant 350 | -10/Materials | Discovered new exit (range 14) 384 | -10/Materials | Discovered new exit (range 16) 384 | -10/Materials | Discovered new exit (range 16) 545 | -10/Materials | Entered another Materials area 545 | -9/Materials | Evolved 2 slots: Utility x2 703 | -9/Materials | Lost 5 parts (1p2n1u1w) 705 | -9/Materials | Self-destructed Last Messages --------------- 00612_ Slammed into G-34 Mercenary. 00614_ Destabilizing: System corrupted (+2). 00616_ Hover Unit destroyed. 00616_ Slammed into G-47 Trooper. 00619_ The unstable cave ceiling collapses. 00619_ G-34 Mercenary crushed by falling debris. 00619_ G-34 Mercenary system corrupted by crushing effect. 00621_ G-34 Mercenary IFF system glitched. 00625_ K-01 Serf collects debris. 00625_ Slammed into K-01 Serf. 00626_ The unstable cave ceiling collapses. 00626_ Mining Laser destroyed. 00628_ G-34 Mercenary misfires. 00638_ Acquired 96 matter. 00648_ Med. Armor Plating destroyed. 00660_ System corrupted: Component data lost. 00670_ W-16 Scout distress signal alerts nearby ally. 00672_ Lgt. Ion Engine destroyed. 00699_ >NBCJ9PP,WQEVDPATYPVZSNL 00704_ Welding Torch destroyed. Map ----- +----------------------------------------------------+ | | | | | | | | | | | | | | | | | | | | | | | | | | | | | | | | | | | ?????????????????????????????????????????????????? | | ?????????????????????#######?????????????????????? | | ?????????????????????# ######????????????????? | | ?????????????######### ##########???????? | | ?????????????+ g ????????? | | ???????????????????#?#Y #????????????????? | | ?????????????????????# ## #????????????????? | | ????????????????? ???###g#### #???#+########???# | | ??????????????????????# @ ## #???# #?#?? | | ??????????????????????# ## ##### """#???? | | ??????????????????????# ## + """#??#? | | ??????????????????? ??# ## ####### """#???# | | ?????????????????? ???# ## #?#?#?# #???? | | ?????????????????? ???# ## #?????# """#??#? | | ??????????????????????# ## #?????# """#???? | | ??????????????????????# ## #?????# """#???? | | ????????????????#?????####### ??????#/ #??#? | | ????????????????????????#?? #T########/######## | | ?????????????????????#???# | | ???????????????#?????????# | | ?????????????????????????# | | ?????????????????????????? ###+########## ## | | ????????????????#?????????#? #??????????##?# ## | | ?????????????????????????????????? ?????????# ## | | ????????????????????????????????????????????# ## | | ????????????????????????????????????????????# #? | | ????????????????????????????????????????? ?? #? | | ??????????????????????????????#????????????## #? | | ???????????????????????????????????????????######? | | ?????????????????????????????????????????????????? | | ????????????????????????????????????????????????#? | | ????????????????????????????????????????#???#????? | | ?????????????????????????????????????????????????? | +----------------------------------------------------+ Best States ------------- Heat Dissipation 28 Energy Generation 10 Energy Capacity 250 Matter Stores 299 Matter Capacity 300 Sight Range 18 Terrain Scan Range 14 Terrain Scan Density 10 Armor Coverage 225 Resistance: KI 20 Resistance: TH 20 Resistance: EX 20 Resistance: EM 20 Resistance: I 20 Resistance: S 20 Resistance: P 20 Evasion (%) 62 Offensive Hacking 10 Item Schematics ----------------- None Robot Schematics ------------------ None Fabricated ------------ Nothing Alien Tech Used ----------------- None Achievements -------------- None Challenges ------------ None Game ------ Seed CloakingHardcellTearclaws Manual? 0 Play Time 00:09:54 Cumulative 5.2 hours Start 2020.06.15 @ 20:21:18 End 2020.06.15 @ 20:29:43 Sessions 1 Manual Loads 0 Difficulty Adventurer Special Mode None Game No. 8 Rogue 0 Adventurer 8 Explorer 0 Win Type - Total 0 Types 0/0/0/0/0/0/0 Lore% 4 Gallery% 17 Achievement% 14 Wizard Run 0 Options --------- ASCII 0 Keyboard 0 Movement Numpad Keybinds 0 Fullscreen 1 Font 12/Smallcaps Map View 83x54 Tactical HUD 1 Map Filters NONE Filters NONE Steam X RUN: 62d1d367-5c73-43a5-8273-bb9d8a6ed8ef